bitfinex/quotes_SOLUSD_20250819
["timestamp","ask_amount","ask_price","bid_price","bid_amount"]
[1755613876203,14.22007046,179.41,179.28,13.94466755]
[1755613876204,47.14,179.46,179.22,10.0]
[1755613876434,26.0,179.42,179.23,0.68]
[1755613876605,14.22007046,179.35,179.23,0.68]
[1755613876925,47.12,179.38,179.23,0.68]
[1755613877127,14.22007046,179.31,179.23,0.68]
[1755613877333,14.22007046,179.29,179.23,0.68]
[1755613877499,14.22007046,179.28,179.23,0.68]
[1755613877699,14.22007046,179.28,179.23,14.90007046]
[1755613877901,14.22007046,179.26,179.2,0.06]
[1755613878206,47.28,179.3,179.25,14.22007046]
[1755613878405,47.28,179.3,179.2,0.06]
[1755613878406,16.771488,179.4,179.29,14.22007046]
[1755613878630,47.36,179.4,179.3,0.68]
[1755613878940,47.36,179.4,179.35,35.77992954]
[1755613879148,28.44014092,179.36,179.2,13.65559401]
[1755613879310,26.0,179.32,179.2,0.06]
[1755613879633,47.36,179.31,179.23,0.06]
[1755613879806,14.22007046,179.28,179.23,14.28007046]
[1755613880002,47.36,179.31,179.23,0.06]
[1755613881350,57.36,179.31,179.23,0.06]
[1755613881506,14.22007046,179.24,179.23,0.06]
[1755613881709,61.72007046,179.24,179.23,0.06]
[1755613882016,47.5,179.24,179.23,0.06]
[1755613882218,61.72007046,179.24,179.23,0.06]
[1755613882416,47.5,179.24,179.23,0.06]
[1755613882726,61.72007046,179.24,179.19,2.13108368]
[1755613882928,47.5,179.24,179.19,2.13108368]
[1755613883109,14.22007046,179.2,179.19,2.13108368]
[1755613883302,10.0,179.32,179.19,2.13108368]
[1755613883503,14.22007046,179.22,179.19,2.13108368]
[1755613883709,48.02,179.23,179.19,2.13108368]
[1755613884048,26.0,179.28,179.19,2.13108368]
[1755613884049,48.32,179.22,179.19,2.13108368]
[1755613884205,14.22007046,179.2,179.19,2.13108368]
[1755613884410,14.22007046,179.14,179.13,1.06888209]
[1755613884630,48.38,179.14,179.13,1.06888209]
[1755613884831,62.60007046,179.14,179.13,1.06888209]
[1755613885041,72.60007046,179.14,179.05,1.17333576]
[1755613885247,10.0,179.11,179.05,1.17333576]
[1755613885441,14.22007046,179.06,179.05,1.17333576]
[1755613885638,62.86007046,179.06,179.05,1.17333576]
[1755613886154,48.64,179.06,179.05,1.17333576]
[1755613886458,543.00761059,179.17,179.05,1.17333576]
[1755613886648,10.0,179.21,179.06,13.59559401]
[1755613886839,48.9,179.2,179.06,13.59559401]
[1755613887028,543.00761059,179.17,179.05,1.85333576]
[1755613887227,48.9,179.2,179.05,1.85333576]
[1755613887228,26.0,179.15,179.05,1.17333576]
[1755613887428,48.9,179.14,179.05,1.17333576]
[1755613887629,26.0,179.11,179.05,1.17333576]
[1755613887829,10.0,179.17,179.05,1.17333576]
[1755613888129,49.14,179.16,179.05,1.17333576]
[1755613888340,75.14,179.15,179.05,1.17333576]
[1755613888540,14.22007046,179.09,179.05,1.17333576]
[1755613888744,49.14,179.08,179.05,1.17333576]
[1755613889061,49.14,179.07,179.05,1.17333576]
[1755613889257,49.14,179.06,179.05,1.17333576]
[1755613889458,49.16,179.09,179.05,1.17333576]
[1755613889630,26.0,179.06,179.05,1.17333576]
[1755613889831,40.22007046,179.06,179.05,1.17333576]
[1755613890258,45.80479066,179.06,178.88,211.8]
[1755613890430,45.80479066,179.06,178.8,20.09933476]
[1755613890431,26.0,179.01,178.91,0.68]
[1755613890743,26.0,178.96,178.91,0.68]
[1755613890950,49.34,179.0,178.91,0.68]
[1755613891130,49.38,178.99,178.95,13.59559401]
[1755613891327,14.22007046,178.96,178.91,0.68]
[1755613891524,14.22007046,178.96,178.91,14.22007046]
[1755613891730,10.0,179.14,178.95,14.22007046]
[1755613891929,10.0,179.16,179.01,14.22007046]
[1755613892158,19.17813183,179.13,179.0,0.68]
[1755613892343,14.22007046,179.01,178.88,211.8]
[1755613892530,49.38,179.0,178.91,0.68]
[1755613892931,49.38,179.0,178.92,13.59559401]
[1755613893136,49.38,179.0,178.96,14.22007046]
[1755613893338,14.22007046,178.98,178.93,0.7]
[1755613893534,14.22007046,178.99,178.93,0.7]
[1755613893858,49.38,179.0,178.94,0.7]
[1755613894043,49.38,179.0,178.95,14.22007046]
[1755613894247,14.22007046,178.99,178.96,0.7]
[1755613894455,14.22007046,178.97,178.91,14.92007046]
[1755613894647,49.38,179.0,178.93,14.22007046]
[1755613894848,49.38,179.0,178.79,543.00761059]
[1755613894849,75.38,179.0,178.89,13.59559401]
[1755613895044,49.38,179.0,178.94,14.22007046]
[1755613895368,49.38,179.0,178.95,14.22007046]
[1755613895545,68.07950211,179.22,178.96,13.59559401]
[1755613895546,49.4,179.02,178.96,13.59559401]
[1755613895860,14.22007046,178.98,178.93,0.7]
[1755613896039,49.4,179.02,178.93,14.92007046]
[1755613896246,14.22007046,178.98,178.93,0.7]
[1755613896543,49.4,179.02,178.93,14.92007046]
[1755613896752,49.4,179.02,178.93,0.7]
[1755613896956,10.0,179.13,178.96,14.22007046]
[1755613897146,14.22007046,179.01,178.97,0.7]
[1755613897338,63.60007046,179.01,178.97,0.7]
[1755613897538,14.22007046,178.98,178.92,13.59559401]
[1755613897749,49.38,179.01,178.94,14.22007046]
[1755613897957,63.60007046,179.01,178.96,14.22007046]
[1755613898159,26.0,179.09,178.98,14.22007046]
[1755613898369,14.22007046,179.02,178.99,0.7]
[1755613898572,49.6,179.02,178.97,0.7]
[1755613898736,14.22007046,178.99,178.97,0.7]
[1755613899046,14.22007046,179.0,178.97,0.7]
[1755613899251,49.6,179.02,178.93,0.7]
[1755613899573,49.6,179.02,178.95,14.22007046]
[1755613899752,49.6,179.02,178.96,14.92007046]
[1755613900080,14.22007046,179.0,178.96,0.7]
[1755613900264,49.6,179.02,178.96,0.7]
[1755613900465,14.22007046,178.99,178.96,0.7]
[1755613900874,49.6,179.02,178.96,0.7]
[1755613901056,14.22007046,179.0,178.97,0.7]
[1755613901386,49.62,179.01,178.92,0.76]
[1755613901592,49.62,179.0,178.93,14.22007046]
[1755613901781,49.62,179.0,178.94,0.7]
[1755613901955,14.22007046,178.97,178.94,0.7]
[1755613902356,14.22007046,178.98,178.95,0.7]
[1755613902656,49.62,179.0,178.92,0.06]
[1755613902860,14.22007046,178.98,178.93,14.22007046]
[1755613903062,14.22007046,178.98,178.94,0.7]
[1755613903274,14.22007046,178.99,178.95,0.7]
[1755613903481,49.62,179.0,178.95,0.7]
[1755613903753,14.22007046,178.99,178.96,0.7]
[1755613903974,49.62,179.0,178.97,0.7]
[1755613904372,49.62,179.0,178.98,0.7]
[1755613904650,14.22007046,179.0,178.98,0.7]
[1755613905092,49.52,179.02,178.98,0.7]
[1755613905290,49.52,179.02,178.96,14.22007046]
[1755613905495,0.03,179.09,179.0,14.22007046]
[1755613905758,49.5,179.05,178.99,0.7]
[1755613905994,0.03,179.09,179.01,14.22007046]
[1755613906287,14.22007046,179.07,179.02,14.92007046]
[1755613906464,14.22007046,179.07,178.95,13.59559401]
[1755613906465,0.03,179.09,179.03,0.7]
[1755613906668,0.03,179.11,179.09,13.59559401]
[1755613906978,49.34,179.18,179.1,0.7]
[1755613907302,49.34,179.18,179.13,14.22007046]
[1755613907584,49.34,179.18,179.15,14.22007046]
[1755613907794,14.22007046,179.21,179.16,14.92007046]
[1755613907996,1.30674834,179.23,179.1,13.59559401]
[1755613907997,1.30674834,179.23,179.18,14.22007046]
[1755613908186,0.58674834,179.23,179.22,14.22007046]
[1755613908490,1.10230133,179.31,179.22,14.92007046]
[1755613908491,14.22007046,179.3,179.22,14.92007046]
[1755613908682,1.10230133,179.31,179.23,0.7]
[1755613908991,49.38230133,179.32,179.26,14.22007046]
[1755613909291,2.19904392,179.36,179.27,0.7]
[1755613909701,2.19904392,179.36,179.28,13.59559401]
[1755613909875,2.19904392,179.36,179.34,14.22007046]
[1755613910194,2.19904392,179.36,179.35,14.92007046]
[1755613910195,1.69904392,179.36,179.35,14.92007046]
[1755613910396,1.69904392,179.36,179.35,0.7]
[1755613910593,1.69904392,179.36,179.32,14.22007046]
[1755613910893,1.69904392,179.36,179.33,14.22007046]
[1755613911215,2.19793216,179.37,179.35,40.22007046]
[1755613911216,1.09896608,179.37,179.35,40.22007046]
[1755613911465,0.03,179.45,179.34,0.7]
[1755613911466,0.03,179.45,179.42,36.0]
[1755613911575,0.03,179.45,179.44,14.22007046]
[1755613911902,0.03,179.58,179.44,14.22007046]
[1755613912106,0.03,179.58,179.54,14.22007046]
[1755613912401,0.03,179.58,179.44,26.0]
[1755613912711,14.25007046,179.58,179.46,26.0]
[1755613912876,0.67,179.57,179.51,14.22007046]
[1755613913219,0.03,179.58,179.46,26.0]
[1755613913369,14.22007046,179.5,179.39,5.57426498]
[1755613913573,26.67,179.49,179.39,14.22007046]
[1755613913875,26.0,179.45,179.3,5.57724484]
[1755613914070,0.67,179.44,179.37,14.22007046]
[1755613914287,75.9,179.45,179.43,14.22007046]
[1755613914288,49.9,179.45,179.43,14.22007046]
[1755613914501,0.67,179.49,179.44,14.22007046]
[1755613914703,14.89007046,179.53,179.36,24.22007046]
[1755613914886,14.22007046,179.44,179.33,55.43631182]
[1755613915071,0.67,179.44,179.37,14.22007046]
[1755613915297,0.67,179.44,179.3,5.57704466]
[1755613915496,0.67,179.44,179.36,14.22007046]
[1755613915804,14.22007046,179.37,179.27,5.57817816]
[1755613916114,0.67,179.39,179.35,14.22007046]
[1755613916331,49.84,179.42,179.26,16.763054]
[1755613916528,49.84,179.42,179.37,14.28029929]
[1755613916691,0.67,179.41,179.35,14.28029929]
[1755613916891,0.67,179.41,179.33,14.28029929]
[1755613917230,13.59559401,179.4,179.33,14.28029929]
[1755613917394,13.59559401,179.4,179.14,27.85435936]
[1755613917395,14.28029929,179.34,179.24,16.764928]
[1755613917595,14.28029929,179.31,179.25,14.28029929]
[1755613917830,49.72,179.34,179.19,10.0]
[1755613918133,26.0,179.31,179.18,5.58098002]
[1755613918429,14.28029929,179.27,179.22,14.28029929]
[1755613918727,14.97443697,179.26,179.21,14.30443697]
[1755613918893,14.30443697,179.27,179.21,14.30443697]
[1755613919093,14.30443697,179.26,179.21,14.30443697]
[1755613919321,0.67,179.26,179.22,14.30443697]
[1755613919825,0.67,179.26,179.2,14.30443697]
[1755613920124,14.30443697,179.26,179.2,14.30443697]
[1755613920340,0.67,179.32,179.25,14.30443697]
[1755613920501,0.03,179.33,179.3,14.30443697]
[1755613921024,0.03,179.33,179.32,14.30443697]
[1755613921699,14.30443697,179.46,179.4,14.30443697]
[1755613921898,0.7,179.48,179.22,40.22]
[1755613921899,0.67,179.45,179.28,49.76]
[1755613922113,14.30443697,179.41,179.36,14.30443697]
[1755613922322,0.03,179.48,179.4,14.30443697]
[1755613922523,14.30443697,179.46,179.41,14.30443697]
[1755613922705,0.03,179.48,179.45,14.30443697]
[1755613923023,0.03,179.48,179.36,14.30443697]
[1755613923024,0.03,179.48,179.35,16.753693]
[1755613923324,0.03,179.48,179.41,14.30443697]
[1755613923623,0.03,179.48,179.33,36.0]
[1755613923624,0.03,179.48,179.39,26.0]
[1755613924325,0.03,179.48,179.32,63.58155699]
[1755613924326,13.59559401,179.47,179.32,63.58155699]
[1755613924631,0.66,179.46,179.4,14.27043213]
[1755613924800,0.03,179.48,179.33,39.595594]
[1755613925004,39.59559401,179.46,179.33,13.595594]
[1755613925204,13.59559401,179.42,179.29,5.57755591]
[1755613925422,0.66,179.41,179.29,5.57755591]
[1755613925626,0.66,179.45,179.4,18.92943663]
[1755613925943,0.03,179.48,179.44,18.92943663]
[1755613926101,0.03,179.48,179.47,18.92943663]
[1755613926297,0.03,179.48,179.47,24.50139851]
[1755613926495,0.03,179.58,179.47,34.50139851]
[1755613926699,0.03,179.58,179.57,18.92943663]
[1755613927323,0.2,179.59,179.57,28.92943663]
[1755613927501,0.03,179.63,179.62,26.0]
[1755613927699,0.03,179.64,179.62,44.92943663]
[1755613927896,0.66,179.78,179.62,44.92943663]
[1755613927897,0.66,179.78,179.63,28.92943663]
[1755613928115,3.55888375,179.8,179.74,18.92943663]
[1755613928321,3.55888375,179.8,179.76,18.92943663]
[1755613928523,2.89888375,179.8,179.78,18.92943663]
[1755613928828,2.89888375,179.8,179.79,18.92943663]
[1755613929028,0.03,179.85,179.79,18.92943663]
[1755613929243,0.03,179.85,179.84,18.92943663]
[1755613929403,0.03,179.85,179.8,30.0]
[1755613930027,0.03,179.85,179.84,18.92943663]
[1755613930258,0.03,179.89,179.85,29.97]
[1755613930422,0.66,179.88,179.85,48.89943663]
[1755613930627,0.03,179.89,179.85,48.89943663]
[1755613930860,0.03,179.89,179.85,29.97]
[1755613931230,13.62559401,179.89,179.86,30.0]
[1755613931422,32.55503064,179.89,179.86,30.0]
[1755613931618,32.55503064,179.89,179.86,48.92943663]
[1755613931619,0.69,179.87,179.86,48.92943663]
[1755613931841,0.03,179.87,179.86,30.0]
[1755613932043,14.28559401,179.87,179.86,30.0]
[1755613932349,0.03,179.89,179.87,16.37440599]
[1755613932650,0.03,179.89,179.88,18.92943663]
[1755613932847,0.03,179.89,179.87,16.37440599]
[1755613933328,18.95943663,179.91,179.89,29.97]
[1755613933667,18.92943663,179.9,179.89,3.32]
[1755613933990,26.0,179.9,179.89,3.32]
[1755613934329,0.03,179.91,179.9,30.0]
[1755613934554,0.03,179.91,179.9,49.64943663]
[1755613934723,0.03,179.91,179.9,30.0]
[1755613934925,0.03,179.91,179.9,49.64943663]
[1755613935150,50.08,179.99,179.9,30.72]
[1755613935354,50.08,179.99,179.91,30.0]
[1755613935355,13.59559401,179.92,179.91,30.0]
[1755613935663,39.59559401,179.92,179.91,29.96]
[1755613935818,58.52503064,179.92,179.91,29.96]
[1755613936025,13.59559401,179.92,179.91,29.96]
[1755613936223,58.52503064,179.92,179.91,29.96]
[1755613936425,18.92943663,179.92,179.89,3.32]
[1755613936727,18.92943663,179.95,179.9,18.92943663]
[1755613936934,0.03,179.96,179.94,18.92943663]
[1755613937127,18.92943663,179.95,179.89,3.32]
[1755613937326,0.03,179.96,179.95,11.07056337]
[1755613937554,18.95943663,179.96,179.95,11.07056337]
[1755613937760,0.03,179.96,179.89,3.32]
[1755613938063,18.92943663,179.92,179.89,3.32]
[1755613938236,0.03,179.96,179.89,22.24943663]
[1755613938565,0.03,179.96,179.92,18.92943663]
[1755613938861,40.2,180.05,179.96,29.97]
[1755613939064,32.52503064,179.97,179.96,29.97]
[1755613939235,40.2,180.05,179.96,29.97]
[1755613939437,40.2,180.05,179.97,19.64943663]
[1755613939643,40.2,180.05,179.97,49.64943663]
[1755613939851,40.2,180.05,179.98,19.64943663]
[1755613940059,18.92943663,180.03,179.98,19.64943663]
[1755613940262,13.59559401,180.04,179.99,0.72]
[1755613940462,0.03,180.07,180.0,18.92943663]
[1755613940664,0.03,180.07,180.01,0.72]
[1755613940665,18.92943663,180.06,180.01,0.72]
[1755613940871,18.92943663,180.05,179.96,29.97]
[1755613941076,18.92943663,180.05,180.0,18.92943663]
[1755613941282,13.59559401,180.04,180.01,0.72]
[1755613941442,13.59559401,180.04,179.97,0.72]
[1755613941758,13.62559401,180.07,179.96,29.97]
[1755613941957,13.59559401,180.03,179.96,29.97]
[1755613942268,13.59559401,180.05,179.97,0.72]
[1755613942473,26.0,180.02,179.96,29.97]
[1755613942768,13.59559401,179.97,179.96,29.97]
[1755613943061,18.92943663,179.97,179.96,29.97]
[1755613943361,32.41389484,179.97,179.96,29.97]
[1755613944040,13.48445821,179.97,179.96,29.97]
[1755613944653,32.41389484,179.97,179.96,29.97]
[1755613944852,13.48445821,179.97,179.96,29.97]
[1755613945059,32.41389484,179.97,179.96,29.97]
[1755613945587,13.48445821,179.97,179.96,29.97]
[1755613945868,32.41389484,179.97,179.96,29.97]
[1755613946251,13.48445821,179.97,179.96,29.97]
[1755613946569,13.48445821,179.97,179.96,30.69]
[1755613946759,13.59559401,179.98,179.96,30.69]
[1755613946965,13.59559401,179.98,179.97,19.64943663]
[1755613947178,0.03,180.06,179.97,19.64943663]
[1755613947179,18.92943663,180.04,179.97,19.64943663]
[1755613947470,13.59559401,180.02,179.97,19.64943663]
[1755613947671,0.03,180.01,179.98,19.64943663]
[1755613947870,0.03,180.01,179.99,19.64943663]
[1755613948052,0.03,180.01,179.96,29.97]
[1755613948253,13.59559401,179.99,179.96,29.97]
[1755613948670,13.59559401,179.97,179.96,29.97]
[1755613949584,32.391168,179.97,179.96,29.97]
[1755613949956,13.59559401,179.97,179.96,29.97]
[1755613950286,32.391168,179.97,179.96,6.2]
[1755613950449,13.59559401,179.97,179.96,6.2]
[1755613950956,75.64,180.0,179.96,6.2]
[1755613950957,13.59559401,179.98,179.96,6.2]
[1755613951149,13.59559401,179.97,179.96,6.2]
[1755613951665,0.03,180.01,179.96,25.73187665]
[1755613951864,13.62559401,180.01,179.97,0.72]
[1755613952063,0.03,180.01,179.96,6.2]
[1755613952242,18.81187665,179.98,179.96,6.2]
[1755613952447,13.59559401,179.99,179.96,6.92]
[1755613952673,18.81187665,179.97,179.96,6.2]
[1755613952891,32.40747066,179.97,179.96,6.2]
[1755613953683,58.40747066,179.97,179.96,6.2]
[1755613953883,13.59559401,179.97,179.96,6.2]
[1755613954116,32.40747066,179.97,179.96,6.2]
[1755613954298,49.52,179.98,179.96,6.2]
[1755613954483,0.03,180.01,179.97,18.81187665]
[1755613954690,0.03,180.01,180.0,18.81187665]
[1755613955007,0.03,180.01,179.98,0.7]
[1755613955008,68.36187665,180.07,179.98,0.7]
[1755613955175,18.81187665,180.04,179.99,0.7]
[1755613955518,18.81187665,180.02,179.99,0.7]
[1755613955677,13.62559401,180.06,179.96,6.2]
[1755613955678,13.62559401,180.06,179.96,25.71187665]
[1755613955873,18.81187665,180.04,179.99,19.51187665]
[1755613956072,32.43747066,180.06,180.01,18.81187665]
[1755613956272,32.43747066,180.06,180.0,0.7]
[1755613956514,18.84187665,180.03,180.0,0.7]
[1755613956883,0.03,180.03,180.0,0.7]
[1755613957090,32.43747066,180.03,180.0,0.7]
[1755613957284,18.81187665,180.02,179.97,18.81187665]
[1755613957609,13.59559401,180.02,179.98,0.7]
[1755613957901,0.03,180.03,179.98,0.7]
[1755613959101,0.03,180.03,179.99,19.51187665]
[1755613959288,0.03,180.03,180.02,18.81187665]
[1755613959484,0.03,180.06,180.0,0.7]
[1755613959694,18.84187665,180.06,180.01,18.81187665]
[1755613959878,0.03,180.06,180.02,0.7]
[1755613960211,0.03,180.06,180.03,0.7]
[1755613960397,13.62559401,180.06,180.03,0.7]
[1755613960702,32.43747066,180.06,180.04,0.7]
[1755613960923,0.03,180.06,180.05,0.7]
[1755613961838,32.43747066,180.06,180.05,0.7]
[1755613961982,0.03,180.06,180.01,19.51187665]
[1755613962178,0.03,180.06,180.02,19.51187665]
[1755613962384,0.03,180.07,180.05,18.81187665]
[1755613962596,0.03,180.07,180.06,0.7]
[1755613963410,0.03,180.09,180.06,19.51187665]
[1755613963596,0.2,180.2,180.08,18.81187665]
[1755613963785,18.81187665,180.19,180.07,0.7]
[1755613963981,0.2,180.2,180.07,0.7]
[1755613964523,0.2,180.2,180.08,54.65308751]
[1755613964742,0.2,180.2,180.12,310.58408349]
[1755613965014,0.2,180.2,180.11,26.0]
[1755613965015,0.2,180.2,180.19,18.81187665]
[1755613965203,0.2,180.2,180.12,0.7]
[1755613965698,0.2,180.2,180.12,311.28408349]
[1755613966000,0.03,180.24,180.15,26.0]
[1755613966379,0.03,180.24,180.18,18.81187665]
[1755613966612,0.03,180.24,180.19,0.7]
[1755613966798,0.03,180.24,180.2,0.7]
[1755613967126,0.03,180.24,180.23,18.81187665]
[1755613967612,0.03,180.26,180.25,18.81187665]
[1755613967786,1.0461579,180.32,180.25,18.81187665]
[1755613967994,1.0461579,180.32,180.29,18.81187665]
[1755613968203,1.0461579,180.32,180.3,0.7]
[1755613968909,1.0461579,180.32,180.27,0.7]
[1755613969109,1.0461579,180.32,180.22,5.54876306]
[1755613969309,1.0461579,180.32,180.3,18.81187665]
[1755613969612,1.0461579,180.32,180.3,0.7]
[1755613970113,1.0461579,180.32,180.28,19.51187665]
[1755613970320,1.0461579,180.32,180.31,18.81187665]
[1755613970518,1.0461579,180.32,180.31,19.51187665]
[1755613971403,1.0461579,180.32,180.29,18.81187665]
[1755613971610,18.81187665,180.31,180.28,16.668981]
[1755613971797,1.0461579,180.32,180.28,19.51187665]
[1755613972103,1.0461579,180.32,180.3,18.81187665]
[1755613972312,1.0461579,180.32,180.25,0.7]
[1755613972313,19.85803455,180.32,180.25,0.7]
[1755613972520,18.81187665,180.31,180.25,0.7]
[1755613972690,18.81187665,180.3,180.25,0.7]
[1755613973014,1.0461579,180.32,180.29,18.81187665]
[1755613973226,1.0461579,180.32,180.26,19.51187665]
[1755613973390,18.81187665,180.31,180.26,19.51187665]
[1755613973590,1.0461579,180.32,180.27,18.81187665]
[1755613973927,1.0461579,180.32,180.28,0.7]
[1755613974212,1.0461579,180.32,180.29,18.81187665]
[1755613974414,19.85803455,180.32,180.25,0.7]
[1755613974593,1.0461579,180.32,180.28,18.81187665]
[1755613974788,19.85803455,180.32,180.28,0.7]
[1755613975026,1.0461579,180.32,180.26,18.81187665]
[1755613975312,1.0461579,180.32,180.29,18.81187665]
[1755613975523,1.0461579,180.32,180.3,19.51187665]
[1755613975817,1.0461579,180.32,180.31,19.51187665]
[1755613976195,1.0461579,180.32,180.23,31.54841223]
[1755613976399,1.0461579,180.32,180.24,0.7]
[1755613976616,18.73104184,180.3,180.25,18.73104184]
[1755613976931,1.0461579,180.32,180.28,18.73104184]
[1755613977290,19.77719974,180.32,180.29,0.7]
[1755613977528,19.77719974,180.32,180.26,0.7]
[1755613977529,18.73104184,180.3,180.26,0.7]
[1755613977821,1.0461579,180.32,180.29,18.73104184]
[1755613978028,1.0461579,180.32,180.27,0.7]
[1755613978394,1.0461579,180.32,180.22,0.7]
[1755613978609,1.0461579,180.32,180.2,16.735467]
[1755613978610,19.77719974,180.32,180.27,18.73104184]
[1755613978924,19.77719974,180.32,180.23,0.7]
[1755613979134,1.0461579,180.32,180.31,18.73104184]
[1755613979316,1.0461579,180.32,180.27,0.7]
[1755613979503,18.73104184,180.31,180.23,0.7]
[1755613979707,14.1382294,180.31,180.25,14.1382294]
[1755613980020,1.0461579,180.32,180.26,0.7]
[1755613980196,13.59559401,180.3,180.21,0.7]
[1755613980597,14.1382294,180.28,180.21,0.7]
[1755613980816,14.1382294,180.22,180.2,16.735467]
[1755613981013,13.59559401,180.26,180.2,0.76]
[1755613981216,14.1382294,180.28,180.2,0.76]
[1755613981394,62.65559401,180.31,180.2,0.76]
[1755613981591,1.0461579,180.32,180.3,14.1382294]
[1755613982023,14.1382294,180.31,180.2,0.06]
[1755613982226,1.0461579,180.32,180.28,14.1382294]
[1755613982404,1.0461579,180.32,180.29,14.1382294]
[1755613982600,1.0461579,180.32,180.3,14.1382294]
[1755613982828,1.0461579,180.32,180.28,14.1382294]
[1755613983212,1.0461579,180.32,180.28,0.72]
[1755613983440,1.0461579,180.32,180.29,0.72]
[1755613983647,1.0461579,180.32,180.31,14.1382294]
[1755613983845,1.0461579,180.32,180.31,14.8582294]
[1755613985450,1.0761579,180.32,180.31,14.8582294]
[1755613985755,1.04560202,180.33,180.31,34.5424629]
[1755613985961,0.03,180.34,180.26,0.28]
[1755613986261,0.03,180.34,180.29,2.222531]
[1755613986574,14.1382294,180.32,180.27,14.1382294]
[1755613986747,0.71,180.32,180.29,14.1382294]
[1755613986913,0.03,180.34,180.31,14.1382294]
[1755613987112,0.03,180.34,180.33,14.1382294]
[1755613988418,0.74,180.34,180.26,0.06]
[1755613988625,0.03,180.34,180.27,26.0]
[1755613988821,0.03,180.34,180.32,14.1382294]
[1755613989071,0.03,180.34,180.26,0.06]
[1755613989244,0.03,180.34,180.33,14.1382294]
[1755613990772,0.03,180.34,180.33,26.0]
[1755613990936,0.03,180.34,180.33,40.1382294]
[1755613991851,0.03,180.34,180.33,26.0]
[1755613992026,0.03,180.34,180.33,14.1382294]
[1755613992226,0.03,180.34,180.33,40.1382294]
[1755613992430,0.03,180.34,180.33,45.6836184]
[1755613992629,0.03,180.34,180.33,40.1382294]
[1755613992831,0.03,180.34,180.33,26.0]
[1755613993052,0.03,180.34,180.33,40.1382294]
[1755613994025,0.03,180.34,180.33,14.1382294]
[1755613994230,0.74,180.34,180.32,14.1382294]
[1755613994442,0.71,180.33,180.32,14.1382294]
[1755613994638,0.71,180.33,180.3,26.0]
[1755613994934,0.71,180.32,180.27,2.222778]
[1755613995267,0.71,180.32,180.3,14.1382294]
[1755613995466,0.03,180.34,180.31,14.1382294]
[1755613995773,14.8482294,180.33,180.26,0.06]
[1755613995979,14.1382294,180.28,180.26,0.06]
[1755613996281,14.1382294,180.27,180.24,0.06]
[1755613996436,39.59559401,180.31,180.24,0.06]
[1755613996774,0.71,180.26,180.24,0.06]
[1755613997133,13.59559401,180.3,180.25,14.1382294]
[1755613997432,13.59559401,180.3,180.24,0.06]
[1755613997433,0.71,180.29,180.24,0.06]
[1755613997746,0.71,180.28,180.24,0.06]
[1755613997965,13.59559401,180.29,180.24,0.06]
[1755613998166,0.71,180.27,180.25,14.1382294]
[1755613998551,0.71,180.26,180.24,0.06]
[1755613998962,0.71,180.25,180.24,0.06]
[1755613999574,26.0,180.33,180.24,0.06]
[1755613999754,0.71,180.28,180.26,14.1382294]
[1755613999956,0.71,180.28,180.24,0.06]
[1755614000172,13.59559401,180.3,180.24,0.06]
[1755614000353,13.59559401,180.32,180.26,14.1382294]
[1755614000555,0.71,180.31,180.28,14.1382294]
[1755614000883,13.59559401,180.29,180.24,14.1982294]
[1755614001192,0.71,180.28,180.24,0.06]
[1755614001358,14.1382294,180.25,180.24,0.06]
[1755614001692,0.71,180.25,180.24,0.06]
[1755614002058,14.30559401,180.28,180.24,0.06]
[1755614002576,0.71,180.27,180.24,0.06]
[1755614002883,0.71,180.3,180.26,14.1382294]